[Event "Late-Titled-Tuesday-Blitz-March-05-2024"]
[Site "Chess.com"]
[Date "2024.03.05"]
[Round "9"]
[White "Yurovskykh_Oleksandr"]
[Black "Vegan4future"]
[Result "1/2-1/2"]
[WhiteElo "2636"]
[BlackElo "2491"]
[TimeControl "180+1"]
[EndTime "15:43:48 PST"]
[Termination "Game drawn - insufficient material"]

1. d4 {[%clk 0:02:54.2]} 1... f5 {[%clk 0:02:57.3]} 2. Nc3 {[%clk 0:02:52.5]}
2... Nf6 {[%clk 0:02:46.6]} 3. Bg5 {[%clk 0:02:51.9]} 3... e6 {[%clk 0:02:43.8]}
4. e4 {[%clk 0:02:51.4]} 4... fxe4 {[%clk 0:02:40.4]} 5. Nxe4 {[%clk 0:02:51.7]}
5... Be7 {[%clk 0:02:41]} 6. Bxf6 {[%clk 0:02:50.4]} 6... Bxf6 {[%clk
0:02:41.9]} 7. Qh5+ {[%clk 0:02:50.5]} 7... g6 {[%clk 0:02:38.3]} 8. Qh6 {[%clk
0:02:49.7]} 8... d5 {[%clk 0:02:34.6]} 9. Nxf6+ {[%clk 0:02:48.5]} 9... Qxf6
{[%clk 0:02:35.5]} 10. Nf3 {[%clk 0:02:48.6]} 10... Nc6 {[%clk 0:02:31.7]} 11.
Bb5 {[%clk 0:02:47.4]} 11... Bd7 {[%clk 0:02:30.4]} 12. Bxc6 {[%clk 0:02:47.1]}
12... Bxc6 {[%clk 0:02:31.3]} 13. O-O-O {[%clk 0:02:47.6]} 13... O-O-O {[%clk
0:02:31.3]} 14. Rhe1 {[%clk 0:02:41.5]} 14... Rdf8 {[%clk 0:02:30.1]} 15. Rd2
{[%clk 0:02:30.9]} 15... Bd7 {[%clk 0:02:21.2]} 16. Ne5 {[%clk 0:02:25]} 16...
g5 {[%clk 0:02:00.9]} 17. Qxf6 {[%clk 0:02:20.9]} 17... Rxf6 {[%clk 0:02:01.8]}
18. f3 {[%clk 0:02:17.9]} 18... h5 {[%clk 0:02:01.3]} 19. h3 {[%clk 0:01:54]}
19... b6 {[%clk 0:01:56.5]} 20. c3 {[%clk 0:01:52.9]} 20... c5 {[%clk
0:01:56.2]} 21. Nxd7 {[%clk 0:01:36.8]} 21... Kxd7 {[%clk 0:01:55.8]} 22. c4
{[%clk 0:01:37.3]} 22... Kd6 {[%clk 0:01:38.6]} 23. dxc5+ {[%clk 0:01:30.5]}
23... bxc5 {[%clk 0:01:37]} 24. cxd5 {[%clk 0:01:24.1]} 24... exd5 {[%clk
0:01:37.9]} 25. Re3 {[%clk 0:01:15.4]} 25... g4 {[%clk 0:01:36.1]} 26. hxg4
{[%clk 0:01:16.3]} 26... hxg4 {[%clk 0:01:36.9]} 27. Ra3 {[%clk 0:01:16.5]}
27... d4 {[%clk 0:01:30.6]} 28. Rxa7 {[%clk 0:01:10.2]} 28... Rf4 {[%clk
0:01:19.3]} 29. fxg4 {[%clk 0:01:03.6]} 29... Rxg4 {[%clk 0:01:20.2]} 30. Rf7
{[%clk 0:01:00.1]} 30... Rh2 {[%clk 0:01:17.8]} 31. Rff2 {[%clk 0:01:00.2]}
31... Kd5 {[%clk 0:01:17.8]} 32. b3 {[%clk 0:01:00.2]} 32... Rg3 {[%clk
0:01:13.5]} 33. Kb2 {[%clk 0:00:57]} 33... Rh1 {[%clk 0:01:10.4]} 34. Rc2 {[%clk
0:00:55.4]} 34... d3 {[%clk 0:01:03.9]} 35. Rf5+ {[%clk 0:00:23.6]} 35... Kd4
{[%clk 0:01:03.6]} 36. Rc4+ {[%clk 0:00:17.1]} 36... Ke3 {[%clk 0:01:03.6]} 37.
Re5+ {[%clk 0:00:17.5]} 37... Kf2 {[%clk 0:00:58.6]} 38. Rexc5 {[%clk
0:00:16.2]} 38... Rxg2 {[%clk 0:00:49.2]} 39. Rd5 {[%clk 0:00:13.8]} 39... Ke3+
{[%clk 0:00:48.5]} 40. Ka3 {[%clk 0:00:06.6]} 40... Ra1 {[%clk 0:00:46.3]} 41.
Rcd4 {[%clk 0:00:04.6]} 41... Raxa2+ {[%clk 0:00:39.5]} 42. Kb4 {[%clk
0:00:05.1]} 42... d2 {[%clk 0:00:38.3]} 43. Kb5 {[%clk 0:00:05.4]} 43... Ra1
{[%clk 0:00:36]} 44. b4 {[%clk 0:00:05.8]} 44... Ra2 {[%clk 0:00:21.6]} 45. Rd3+
{[%clk 0:00:05]} 45... Ke4 {[%clk 0:00:21]} 46. R3d4+ {[%clk 0:00:05.1]} 46...
Kf3 {[%clk 0:00:18.2]} 47. Rd3+ {[%clk 0:00:05]} 47... Kg4 {[%clk 0:00:18.7]}
48. R5d4+ {[%clk 0:00:05.2]} 48... Kf5 {[%clk 0:00:18.3]} 49. Kc4 {[%clk
0:00:05.7]} 49... Rb2 {[%clk 0:00:15.4]} 50. Kc3 {[%clk 0:00:05.2]} 50... d1=Q
{[%clk 0:00:09.7]} 51. Rxd1 {[%clk 0:00:04.2]} 51... Rgc2+ {[%clk 0:00:10.1]}
52. Kd3 {[%clk 0:00:04.5]} 52... Rc8 {[%clk 0:00:07.7]} 53. Rf1+ {[%clk
0:00:03]} 53... Kg5 {[%clk 0:00:06.7]} 54. Re1 {[%clk 0:00:02.1]} 54... Rb8
{[%clk 0:00:06.9]} 55. Kc3 {[%clk 0:00:02.5]} 55... Ra2 {[%clk 0:00:07.1]} 56.
Kb3 {[%clk 0:00:02.8]} 56... Ra7 {[%clk 0:00:07.2]} 57. Re5+ {[%clk 0:00:03.2]}
57... Kf6 {[%clk 0:00:07.4]} 58. Rc5 {[%clk 0:00:04.1]} 58... Ke6 {[%clk
0:00:07.6]} 59. Re4+ {[%clk 0:00:04.2]} 59... Kd6 {[%clk 0:00:07.8]} 60. Rd4+
{[%clk 0:00:05.1]} 60... Ke6 {[%clk 0:00:07.9]} 61. Kc4 {[%clk 0:00:05.6]} 61...
Rh7 {[%clk 0:00:08.8]} 62. b5 {[%clk 0:00:05.9]} 62... Rh1 {[%clk 0:00:08.9]}
63. Rc6+ {[%clk 0:00:06.4]} 63... Ke5 {[%clk 0:00:09]} 64. Rd5+ {[%clk 0:00:07]}
64... Ke4 {[%clk 0:00:08.2]} 65. Re6+ {[%clk 0:00:07.5]} 65... Kf4 {[%clk
0:00:08.8]} 66. Re7 {[%clk 0:00:07.8]} 66... Rc1+ {[%clk 0:00:09.7]} 67. Kb4
{[%clk 0:00:08.2]} 67... Rb1+ {[%clk 0:00:10]} 68. Kc4 {[%clk 0:00:08.6]} 68...
Rc1+ {[%clk 0:00:10.4]} 69. Kd4 {[%clk 0:00:08.6]} 69... Rd1+ {[%clk 0:00:10]}
70. Kc5 {[%clk 0:00:03.7]} 70... Rc1+ {[%clk 0:00:10.9]} 71. Kd6 {[%clk
0:00:03.8]} 71... Rb1 {[%clk 0:00:09.9]} 72. Kc6 {[%clk 0:00:03.7]} 72... Rc1+
{[%clk 0:00:10]} 73. Kd7 {[%clk 0:00:03.3]} 73... Rb1 {[%clk 0:00:07.3]} 74.
Ree5 {[%clk 0:00:03]} 74... Rc1 {[%clk 0:00:04.8]} 75. Kd6 {[%clk 0:00:03.3]}
75... Rc4 {[%clk 0:00:03.3]} 76. Ke7 {[%clk 0:00:03.1]} 76... Rc2 {[%clk
0:00:03.5]} 77. Rf5+ {[%clk 0:00:03.5]} 77... Ke4 {[%clk 0:00:03.8]} 78. Rfe5+
{[%clk 0:00:04.1]} 78... Kf4 {[%clk 0:00:04.2]} 79. Rh5 {[%clk 0:00:04.4]} 79...
Ke4 {[%clk 0:00:05.1]} 80. Rc5 {[%clk 0:00:04.6]} 80... Kd4 {[%clk 0:00:05.4]}
81. Rhd5+ {[%clk 0:00:04.2]} 81... Ke4 {[%clk 0:00:05.5]} 82. Re5+ {[%clk
0:00:04.5]} 82... Kd4 {[%clk 0:00:05.8]} 83. Red5+ {[%clk 0:00:04.7]} 83... Ke4
{[%clk 0:00:06.3]} 84. Kd6 {[%clk 0:00:05.4]} 84... Rb2 {[%clk 0:00:05.7]} 85.
Kc7 {[%clk 0:00:04.6]} 85... Rh8 {[%clk 0:00:05.6]} 86. b6 {[%clk 0:00:04.6]}
86... Rh7+ {[%clk 0:00:06.5]} 87. Rd7 {[%clk 0:00:05.1]} 87... Rxd7+ {[%clk
0:00:06.3]} 88. Kxd7 {[%clk 0:00:06]} 88... Rxb6 {[%clk 0:00:07]} 89. Rc4+
{[%clk 0:00:06.1]} 89... Kd3 {[%clk 0:00:07.1]} 90. Rh4 {[%clk 0:00:06.5]} 90...
Rb2 {[%clk 0:00:07.8]} 91. Kd6 {[%clk 0:00:06.6]} 91... Kc2 {[%clk 0:00:08.7]}
92. Kc5 {[%clk 0:00:06.9]} 92... Kb3 {[%clk 0:00:09.6]} 93. Rh3+ {[%clk
0:00:06.8]} 93... Ka2 {[%clk 0:00:10.1]} 94. Kc4 {[%clk 0:00:07.5]} 94... Rg2
{[%clk 0:00:10.2]} 95. Kd3 {[%clk 0:00:07.2]} 95... Rg4 {[%clk 0:00:10.3]} 96.
Kc3 {[%clk 0:00:07.5]} 96... Rg8 {[%clk 0:00:09.2]} 97. Rh2+ {[%clk 0:00:07.9]}
97... Ka3 {[%clk 0:00:09.6]} 98. Rh7 {[%clk 0:00:07.7]} 98... Rc8+ {[%clk
0:00:10.5]} 99. Kd4 {[%clk 0:00:08.3]} 99... Kb4 {[%clk 0:00:11.1]} 100. Rb7+
{[%clk 0:00:07.8]} 100... Ka5 {[%clk 0:00:11.7]} 101. Rb1 {[%clk 0:00:08]}
101... Ka6 {[%clk 0:00:11.9]} 102. Kd5 {[%clk 0:00:08.5]} 102... Ka5 {[%clk
0:00:12.1]} 103. Kd6 {[%clk 0:00:08.9]} 103... Ka4 {[%clk 0:00:12.7]} 104. Kd7
{[%clk 0:00:09.5]} 104... Rc2 {[%clk 0:00:13.3]} 105. Rb8 {[%clk 0:00:09.4]}
105... Ka3 {[%clk 0:00:13.8]} 106. Kd6 {[%clk 0:00:09.8]} 106... Ka4 {[%clk
0:00:14.3]} 107. Kd5 {[%clk 0:00:10.2]} 107... Ka5 {[%clk 0:00:14.9]} 108. Rb1
{[%clk 0:00:09.9]} 108... Ka4 {[%clk 0:00:14.9]} 109. Ra1+ {[%clk 0:00:10.3]}
109... Kb3 {[%clk 0:00:14.8]} 110. Ra8 {[%clk 0:00:10.9]} 110... Kb2 {[%clk
0:00:13.9]} 111. Kd4 {[%clk 0:00:11.2]} 111... Rc7 {[%clk 0:00:13.9]} 112. Ra5
{[%clk 0:00:10.7]} 112... Kb3 {[%clk 0:00:14.2]} 113. Kd3 {[%clk 0:00:10.5]}
113... Rd7+ {[%clk 0:00:13.7]} 114. Ke4 {[%clk 0:00:11.1]} 114... Kb4 {[%clk
0:00:14.4]} 115. Rd5 {[%clk 0:00:11.4]} 115... Rxd5 {[%clk 0:00:14.1]} 116. Kxd5
{[%clk 0:00:11.8]} 1/2-1/2

[Event "Late-Titled-Tuesday-Blitz-March-05-2024"]
[Site "Chess.com"]
[Date "2024.03.05"]
[Round "10"]
[White "Ze-Pequeno"]
[Black "flubs"]
[Result "0-1"]
[WhiteElo "2317"]
[BlackElo "2460"]
[TimeControl "180+1"]
[EndTime "15:45:33 PST"]
[Termination "flubs won by resignation"]

1. e4 {[%clk 0:02:54.8]} 1... c6 {[%clk 0:02:59.1]} 2. d4 {[%clk 0:02:54.7]}
2... d5 {[%clk 0:02:59.1]} 3. e5 {[%clk 0:02:55.2]} 3... Bf5 {[%clk 0:02:58.6]}
4. h4 {[%clk 0:02:55.3]} 4... h6 {[%clk 0:02:58.3]} 5. g4 {[%clk 0:02:55]} 5...
Bd7 {[%clk 0:02:57.6]} 6. h5 {[%clk 0:02:55.1]} 6... e6 {[%clk 0:02:56]} 7. f4
{[%clk 0:02:55]} 7... c5 {[%clk 0:02:55.8]} 8. c3 {[%clk 0:02:54.8]} 8... Nc6
{[%clk 0:02:55.9]} 9. Nf3 {[%clk 0:02:54.9]} 9... Rc8 {[%clk 0:02:54.9]} 10. a3
{[%clk 0:02:47.3]} 10... Qb6 {[%clk 0:02:53.5]} 11. Rh2 {[%clk 0:02:31.7]} 11...
cxd4 {[%clk 0:02:34.1]} 0-1

[Event "Late-Titled-Tuesday-Blitz-March-05-2024"]
[Site "Chess.com"]
[Date "2024.03.05"]
[Round "10"]
[White "fandebobbyfischer"]
[Black "MusicCityMaster"]
[Result "0-1"]
[WhiteElo "2625"]
[BlackElo "2526"]
[TimeControl "180+1"]
[EndTime "15:46:22 PST"]
[Termination "MusicCityMaster won by resignation"]

1. e4 {[%clk 0:03:00.9]} 1... e6 {[%clk 0:02:59.9]} 2. d4 {[%clk 0:03:00.8]}
2... d5 {[%clk 0:03:00.6]} 3. Nd2 {[%clk 0:03:00.9]} 3... Nc6 {[%clk 0:02:58.6]}
4. Ngf3 {[%clk 0:02:58.6]} 4... Nf6 {[%clk 0:02:58.9]} 5. e5 {[%clk 0:02:51.1]}
5... Nd7 {[%clk 0:02:59.4]} 6. c3 {[%clk 0:02:50]} 6... f6 {[%clk 0:02:56.3]} 7.
exf6 {[%clk 0:02:50.9]} 7... Qxf6 {[%clk 0:02:56.2]} 8. Bb5 {[%clk 0:02:51.8]}
8... Bd6 {[%clk 0:02:54.5]} 9. Nf1 {[%clk 0:02:52.2]} 9... O-O {[%clk
0:02:53.6]} 10. Ng3 {[%clk 0:02:52.8]} 10... Kh8 {[%clk 0:02:51.5]} 11. O-O
{[%clk 0:02:52.5]} 11... a6 {[%clk 0:02:50.4]} 12. Bg5 {[%clk 0:02:51.7]} 12...
Qf7 {[%clk 0:02:45.2]} 13. Bxc6 {[%clk 0:02:49.2]} 13... bxc6 {[%clk 0:02:45.1]}
14. Qe2 {[%clk 0:02:46.9]} 14... a5 {[%clk 0:02:38.8]} 15. Qe3 {[%clk
0:02:43.5]} 15... h6 {[%clk 0:02:18.9]} 16. Bxh6 {[%clk 0:02:43.2]} 16... gxh6
{[%clk 0:02:18.9]} 17. Qxh6+ {[%clk 0:02:43.3]} 17... Qh7 {[%clk 0:02:16.1]} 18.
Qxe6 {[%clk 0:02:43.8]} 18... Nf6 {[%clk 0:02:13.8]} 19. Qe3 {[%clk 0:02:43.6]}
19... Ng4 {[%clk 0:02:06.1]} 20. Qd2 {[%clk 0:02:34.7]} 20... Rxf3 {[%clk
0:02:04.7]} 0-1

[Event "Late-Titled-Tuesday-Blitz-March-05-2024"]
[Site "Chess.com"]
[Date "2024.03.05"]
[Round "10"]
[White "Slovineanu"]
[Black "Walter_White_Poland"]
[Result "1-0"]
[WhiteElo "2485"]
[BlackElo "2362"]
[TimeControl "180+1"]
[EndTime "15:46:54 PST"]
[Termination "Slovineanu won by resignation"]

1. d4 {[%clk 0:02:58.2]} 1... d5 {[%clk 0:02:58.6]} 2. Nf3 {[%clk 0:02:58]} 2...
Nf6 {[%clk 0:02:57.9]} 3. c4 {[%clk 0:02:58.2]} 3... e6 {[%clk 0:02:57.8]} 4. e3
{[%clk 0:02:58.4]} 4... Be7 {[%clk 0:02:56.8]} 5. b3 {[%clk 0:02:58.1]} 5... O-O
{[%clk 0:02:56.6]} 6. Bd3 {[%clk 0:02:58.7]} 6... b6 {[%clk 0:02:56.7]} 7. O-O
{[%clk 0:02:58.6]} 7... Bb7 {[%clk 0:02:56.9]} 8. Bb2 {[%clk 0:02:59.3]} 8... c5
{[%clk 0:02:56.1]} 9. Qe2 {[%clk 0:02:58.9]} 9... Nbd7 {[%clk 0:02:55.3]} 10.
Nc3 {[%clk 0:02:59.2]} 10... Rc8 {[%clk 0:02:50.6]} 11. Rad1 {[%clk 0:02:58.5]}
11... Qc7 {[%clk 0:02:49.5]} 12. Ne5 {[%clk 0:02:58.5]} 12... Nxe5 {[%clk
0:02:37.3]} 13. dxe5 {[%clk 0:02:58.1]} 13... Nd7 {[%clk 0:02:32.7]} 14. f4
{[%clk 0:02:32.8]} 14... f6 {[%clk 0:02:24.1]} 15. cxd5 {[%clk 0:02:25.3]} 15...
fxe5 {[%clk 0:01:59.9]} 16. dxe6 {[%clk 0:02:24]} 16... Nf6 {[%clk 0:01:59.5]}
17. Nb5 {[%clk 0:02:22.4]} 17... Qc6 {[%clk 0:01:52.5]} 18. Nxa7 {[%clk
0:02:20.3]} 1-0

[Event "Late-Titled-Tuesday-Blitz-March-05-2024"]
[Site "Chess.com"]
[Date "2024.03.05"]
[Round "10"]
[White "Sanan_Sjugirov"]
[Black "ContrVersia"]
[Result "1-0"]
[WhiteElo "2997"]
[BlackElo "2863"]
[TimeControl "180+1"]
[EndTime "15:47:22 PST"]
[Termination "Sanan_Sjugirov won by resignation"]

1. e4 {[%clk 0:02:57.1]} 1... e5 {[%clk 0:02:57.9]} 2. Nf3 {[%clk 0:02:57.2]}
2... Nc6 {[%clk 0:02:58.3]} 3. Bb5 {[%clk 0:02:57.9]} 3... Bc5 {[%clk
0:02:56.8]} 4. c3 {[%clk 0:02:56.2]} 4... Nf6 {[%clk 0:02:56.5]} 5. O-O {[%clk
0:02:53.7]} 5... O-O {[%clk 0:02:53]} 6. d4 {[%clk 0:02:53.4]} 6... Bb6 {[%clk
0:02:53.2]} 7. Re1 {[%clk 0:02:42]} 7... d6 {[%clk 0:02:49.4]} 8. Bg5 {[%clk
0:02:41.3]} 8... h6 {[%clk 0:02:48]} 9. Bh4 {[%clk 0:02:39.6]} 9... g5 {[%clk
0:02:33]} 10. Bg3 {[%clk 0:02:39.5]} 10... exd4 {[%clk 0:02:29]} 11. Bxc6 {[%clk
0:02:39]} 11... bxc6 {[%clk 0:02:28.4]} 12. Nxd4 {[%clk 0:02:38.6]} 12... Re8
{[%clk 0:02:23.9]} 13. Nd2 {[%clk 0:02:38]} 13... Bg4 {[%clk 0:02:16.1]} 14. Qc2
{[%clk 0:02:36.4]} 14... Qd7 {[%clk 0:02:12.4]} 15. h3 {[%clk 0:02:31.3]} 15...
Bh5 {[%clk 0:02:12.1]} 16. Nf5 {[%clk 0:02:29.1]} 16... Kh7 {[%clk 0:02:10.1]}
17. a4 {[%clk 0:02:09.8]} 17... a6 {[%clk 0:02:05]} 18. Nc4 {[%clk 0:02:08.9]}
18... Nxe4 {[%clk 0:01:50.9]} 19. Nfxd6 {[%clk 0:02:01.9]} 19... cxd6 {[%clk
0:01:46.5]} 20. Nxb6 {[%clk 0:01:59]} 1-0

[Event "Late-Titled-Tuesday-Blitz-March-05-2024"]
[Site "Chess.com"]
[Date "2024.03.05"]
[Round "10"]
[White "cristiano78"]
[Black "KorolDimitriy75"]
[Result "0-1"]
[WhiteElo "2282"]
[BlackElo "2404"]
[TimeControl "180+1"]
[EndTime "15:47:32 PST"]
[Termination "KorolDimitriy75 won by resignation"]

1. d4 {[%clk 0:03:00]} 1... Nf6 {[%clk 0:02:57.8]} 2. c4 {[%clk 0:03:00.2]} 2...
c5 {[%clk 0:02:57.7]} 3. d5 {[%clk 0:03:00.5]} 3... b5 {[%clk 0:02:58]} 4. cxb5
{[%clk 0:03:01.1]} 4... a6 {[%clk 0:02:58.4]} 5. bxa6 {[%clk 0:03:01.8]} 5... g6
{[%clk 0:02:57.7]} 6. Nc3 {[%clk 0:03:02.2]} 6... Bxa6 {[%clk 0:02:57.8]} 7. g3
{[%clk 0:03:02.2]} 7... d6 {[%clk 0:02:58]} 8. Bg2 {[%clk 0:03:02.5]} 8... Bg7
{[%clk 0:02:58.7]} 9. Nf3 {[%clk 0:03:02.7]} 9... O-O {[%clk 0:02:59.6]} 10. Rb1
{[%clk 0:03:01.8]} 10... Nbd7 {[%clk 0:03:00.5]} 11. O-O {[%clk 0:03:01.6]}
11... Qa5 {[%clk 0:02:59.9]} 12. Bd2 {[%clk 0:03:00.8]} 12... Rfb8 {[%clk
0:02:58.9]} 13. b3 {[%clk 0:03:00.7]} 13... Qa3 {[%clk 0:02:58]} 14. Qc2 {[%clk
0:02:59.4]} 14... Ng4 {[%clk 0:02:52.8]} 15. h3 {[%clk 0:02:59.2]} 15... Nge5
{[%clk 0:02:52.7]} 16. Nxe5 {[%clk 0:02:59.5]} 16... Nxe5 {[%clk 0:02:53.6]} 17.
f4 {[%clk 0:02:58.2]} 17... Nd7 {[%clk 0:02:43.8]} 18. Kh2 {[%clk 0:02:56.6]}
18... c4 {[%clk 0:02:18.8]} 19. Rfe1 {[%clk 0:02:46.2]} 19... Nc5 {[%clk
0:01:47.4]} 20. e4 {[%clk 0:02:38.1]} 20... cxb3 {[%clk 0:01:46.2]} 21. axb3
{[%clk 0:02:37.1]} 21... Bd3 {[%clk 0:01:46]} 22. Qd1 {[%clk 0:02:32]} 22...
Bxb1 {[%clk 0:01:45.6]} 23. Qxb1 {[%clk 0:02:32.1]} 23... Rxb3 {[%clk
0:01:43.1]} 24. Qc1 {[%clk 0:02:30.3]} 24... Bxc3 {[%clk 0:01:39.9]} 25. Qxa3
{[%clk 0:02:21.4]} 25... Raxa3 {[%clk 0:01:37.3]} 26. Bxc3 {[%clk 0:02:22]}
26... Rxc3 {[%clk 0:01:38.1]} 27. e5 {[%clk 0:02:22.8]} 27... Rc2 {[%clk
0:01:34.3]} 28. Kg1 {[%clk 0:02:21.3]} 28... Rxg3 {[%clk 0:01:31.6]} 0-1

[Event "Late-Titled-Tuesday-Blitz-March-05-2024"]
[Site "Chess.com"]
[Date "2024.03.05"]
[Round "10"]
[White "venturov"]
[Black "ACollins05"]
[Result "0-1"]
[WhiteElo "2477"]
[BlackElo "2610"]
[TimeControl "180+1"]
[EndTime "15:47:53 PST"]
[Termination "ACollins05 won by resignation"]

1. e4 {[%clk 0:03:00.9]} 1... c5 {[%clk 0:02:47.1]} 2. Nf3 {[%clk 0:03:00.9]}
2... d6 {[%clk 0:02:47.2]} 3. d4 {[%clk 0:03:00.6]} 3... cxd4 {[%clk 0:02:48.1]}
4. Nxd4 {[%clk 0:03:01.4]} 4... Nf6 {[%clk 0:02:48.3]} 5. Nc3 {[%clk 0:03:02]}
5... Nc6 {[%clk 0:02:48.6]} 6. Bc4 {[%clk 0:03:02.1]} 6... Qb6 {[%clk 0:02:48]}
7. Nxc6 {[%clk 0:02:56.3]} 7... bxc6 {[%clk 0:02:46.1]} 8. O-O {[%clk
0:02:56.4]} 8... g6 {[%clk 0:02:44.8]} 9. Be3 {[%clk 0:02:48.2]} 9... Qxb2
{[%clk 0:02:33.8]} 10. Qd2 {[%clk 0:02:47.6]} 10... Qb7 {[%clk 0:02:28.9]} 11.
Rab1 {[%clk 0:02:45.9]} 11... Qc7 {[%clk 0:02:28.9]} 12. f4 {[%clk 0:02:30.8]}
12... Bg7 {[%clk 0:02:26.7]} 13. e5 {[%clk 0:02:30.6]} 13... Ng4 {[%clk
0:02:08.6]} 14. exd6 {[%clk 0:02:09.9]} 14... Qxd6 {[%clk 0:02:08.2]} 15. Qe1
{[%clk 0:01:53.4]} 15... Nxe3 {[%clk 0:02:05.4]} 16. Ne4 {[%clk 0:01:53.3]}
16... Qd4 {[%clk 0:02:00.9]} 17. Bxf7+ {[%clk 0:01:46.6]} 17... Kxf7 {[%clk
0:01:48.2]} 18. Rb4 {[%clk 0:01:46.4]} 18... Nxc2+ {[%clk 0:01:35.5]} 19. Rxd4
{[%clk 0:01:40.4]} 19... Bxd4+ {[%clk 0:01:36.4]} 0-1

[Event "Late-Titled-Tuesday-Blitz-March-05-2024"]
[Site "Chess.com"]
[Date "2024.03.05"]
[Round "10"]
[White "Vesapesa"]
[Black "LUISMIGUELOV"]
[Result "1/2-1/2"]
[WhiteElo "2217"]
[BlackElo "2160"]
[TimeControl "180+1"]
[EndTime "15:47:56 PST"]
[Termination "Game drawn by agreement"]

1. e4 {[%clk 0:03:00.9]} 1... c6 {[%clk 0:02:28.4]} 2. d4 {[%clk 0:02:59.9]}
2... d5 {[%clk 0:02:28.9]} 3. exd5 {[%clk 0:02:59.7]} 3... cxd5 {[%clk
0:02:28.9]} 4. Bd3 {[%clk 0:03:00.3]} 4... Nc6 {[%clk 0:02:29.1]} 5. c3 {[%clk
0:03:00.3]} 5... Qc7 {[%clk 0:02:28.4]} 6. Ne2 {[%clk 0:02:55.1]} 6... Bg4
{[%clk 0:02:26.7]} 7. h3 {[%clk 0:02:52.1]} 7... Bd7 {[%clk 0:02:25.8]} 8. Bf4
{[%clk 0:02:51.2]} 8... Qb6 {[%clk 0:02:25.8]} 9. Qb3 {[%clk 0:02:50.6]} 9...
Qxb3 {[%clk 0:02:23.5]} 10. axb3 {[%clk 0:02:51.5]} 10... a6 {[%clk 0:02:21.8]}
11. Nd2 {[%clk 0:02:49.6]} 11... e6 {[%clk 0:02:20.9]} 12. b4 {[%clk 0:02:48.4]}
12... Rc8 {[%clk 0:02:20.6]} 13. Nb3 {[%clk 0:02:47.5]} 13... Nf6 {[%clk
0:02:19]} 14. Nc5 {[%clk 0:02:46]} 14... Bxc5 {[%clk 0:02:17.6]} 15. bxc5 {[%clk
0:02:45.1]} 15... Ne4 {[%clk 0:02:18]} 16. Bxe4 {[%clk 0:02:43.8]} 16... dxe4
{[%clk 0:02:17.3]} 17. Bd6 {[%clk 0:02:44.4]} 17... f5 {[%clk 0:02:16.1]} 18. b4
{[%clk 0:02:37.7]} 18... Kf7 {[%clk 0:02:15.6]} 19. O-O {[%clk 0:02:35.7]} 19...
Ne7 {[%clk 0:02:14.9]} 20. f3 {[%clk 0:02:25.1]} 20... exf3 {[%clk 0:02:12]} 21.
Rxf3 {[%clk 0:02:24.1]} 21... Bb5 {[%clk 0:02:12.4]} 22. Ng3 {[%clk 0:02:12]}
22... g6 {[%clk 0:02:08.2]} 23. Re1 {[%clk 0:02:06.9]} 23... Rhe8 {[%clk
0:02:06.3]} 24. Ne2 {[%clk 0:01:59.9]} 24... Nd5 {[%clk 0:02:05.4]} 25. Nf4
{[%clk 0:01:52.7]} 25... Nxf4 {[%clk 0:02:01.6]} 26. Bxf4 {[%clk 0:01:46.8]}
26... Bc4 {[%clk 0:02:01.7]} 27. Rfe3 {[%clk 0:01:45.8]} 27... Rc6 {[%clk
0:01:58.3]} 28. Bd6 {[%clk 0:01:44.6]} 28... b6 {[%clk 0:01:56.8]} 29. g3 {[%clk
0:01:40.6]} 29... bxc5 {[%clk 0:01:56.7]} 30. dxc5 {[%clk 0:01:36]} 30... h5
{[%clk 0:01:56]} 31. Kf2 {[%clk 0:01:34.8]} 1/2-1/2

[Event "Late-Titled-Tuesday-Blitz-March-05-2024"]
[Site "Chess.com"]
[Date "2024.03.05"]
[Round "10"]
[White "DonBroca"]
[Black "ritanovikova"]
[Result "1-0"]
[WhiteElo "2162"]
[BlackElo "2201"]
[TimeControl "180+1"]
[EndTime "15:48:03 PST"]
[Termination "DonBroca won by resignation"]

1. e4 {[%clk 0:03:00.9]} 1... d5 {[%clk 0:02:58.1]} 2. exd5 {[%clk 0:03:00.8]}
2... Qxd5 {[%clk 0:02:59]} 3. c4 {[%clk 0:03:00.9]} 3... Qd6 {[%clk 0:02:59.7]}
4. d4 {[%clk 0:03:00.6]} 4... Nf6 {[%clk 0:03:00.1]} 5. Nc3 {[%clk 0:03:00.5]}
5... Bf5 {[%clk 0:03:00.5]} 6. Nf3 {[%clk 0:02:59.3]} 6... e6 {[%clk 0:03:00.5]}
7. Bd3 {[%clk 0:02:58.9]} 7... Bxd3 {[%clk 0:03:00]} 8. Qxd3 {[%clk 0:02:59.8]}
8... c6 {[%clk 0:03:00]} 9. O-O {[%clk 0:03:00.3]} 9... Be7 {[%clk 0:02:59.9]}
10. Bg5 {[%clk 0:03:00.8]} 10... O-O {[%clk 0:03:00]} 11. Rad1 {[%clk
0:03:00.6]} 11... Qc7 {[%clk 0:02:59.2]} 12. Rfe1 {[%clk 0:03:00.4]} 12... Na6
{[%clk 0:02:58.3]} 13. a3 {[%clk 0:02:39.7]} 13... Rad8 {[%clk 0:02:57.6]} 14.
Qe3 {[%clk 0:02:39.1]} 14... Nb8 {[%clk 0:02:56.3]} 15. h3 {[%clk 0:02:32.3]}
15... a6 {[%clk 0:02:56]} 16. Ne5 {[%clk 0:02:26.2]} 16... Nbd7 {[%clk
0:02:54.8]} 17. Bf4 {[%clk 0:02:21.4]} 17... Bd6 {[%clk 0:02:53.2]} 18. Nxd7
{[%clk 0:02:14.3]} 18... Rxd7 {[%clk 0:02:50]} 19. Bxd6 {[%clk 0:02:10.1]} 19...
Rxd6 {[%clk 0:02:50.2]} 20. Ne4 {[%clk 0:02:10.1]} 20... Nxe4 {[%clk 0:02:49.9]}
21. Qxe4 {[%clk 0:02:11]} 21... Rfd8 {[%clk 0:02:49.8]} 22. Re3 {[%clk
0:02:11.3]} 22... Qd7 {[%clk 0:02:49.3]} 23. Red3 {[%clk 0:02:06.1]} 23... c5
{[%clk 0:02:46.5]} 24. d5 {[%clk 0:02:06.2]} 24... exd5 {[%clk 0:02:45.9]} 25.
Rxd5 {[%clk 0:02:06.9]} 25... Qe6 {[%clk 0:01:49.5]} 26. Qxe6 {[%clk 0:01:42.9]}
26... Rxd5 {[%clk 0:01:46.1]} 27. Rxd5 {[%clk 0:01:36.2]} 27... Rf8 {[%clk
0:01:45.7]} 28. Qe7 {[%clk 0:01:33.7]} 1-0